[Event "XIII Marques de Pombal 2022"]
[Site "Pombal"]
[Date "2022.10.07"]
[Round "5.5"]
[White "Veleirinho, Tomas Carvalho"]
[Black "Goncalves, Lucas Jordao"]
[Result "0-1"]
[ECO "C50"]
[WhiteElo "1692"]
[BlackElo "1849"]
[Annotator "NA RC COMBH"]
[PlyCount "64"]
[EventDate "2022.09.28"]
[EventType "swiss"]
[EventCountry "POR"]
[SourceTitle "playchess.com"]
[Source "ChessBase"]
[SourceQuality "1"]
[TimeControl "5400+30"]

1. e4 e5 2. Nf3 Nc6 3. Bc4 Bc5 4. O-O Nf6 5. d3 d6 6. c3 O-O 7. h3 {7.Nbd2 is the recent fashion.} Be6 8. Bb3 Bb6 9. Re1 Qd7 10. Be3 {[#]} Ne7 $146 ({Predecessor:} 10... Kh8 11. Nbd2 Ne8 12. d4 Bxb3 13. Nxb3 exd4 14. Nbxd4 Nf6 15. Bg5 Rae8 16. Bxf6 gxf6 {1-0 (28) Zecirovic,G (1806)-Dueck,M (1483) Lugano 2020}) 11. Nbd2 Ng6 12. Nf1 Nf4 13. Bxf4 exf4 14. Bc2 Kh8 15. d4 Bxh3 16. gxh3 Qxh3 17. N3h2 g5 18. Qf3 Qh4 19. e5 dxe5 20. Rxe5 Rg8 21. Kh1 c6 22. Re7 Rg7 23. Rae1 Rag8 24. Bb3 Rf8 25. Rxb7 c5 26. Ree7 (26. Qc6 $142 Qxf2 27. Ree7 (27. Qxf6 Qxe1 28. Re7 Qf2 $14)) 26... cxd4 27. Rxb6 $2 axb6 28. cxd4 g4 (28... Qh6 $1 $15 {was preferrable.} 29. Qe2 g4) 29. Qxf4 {[#]} Nh5 {[#]} (29... Nd5 $1 $15 {stays ahead.} 30. Bxd5 Qxe7) 30. Qe5 (30. Qe3 $1 $16) 30... Qxf2 31. Qxh5 (31. Re8 $11 Rxe8 32. Qxe8+ Rg8 33. Qxf7) 31... g3 32. Ne3 g2+ 0-1

[Event "XIII Marques de Pombal 2022"]
[Site "Pombal"]
[Date "2022.10.07"]
[Round "5.6"]
[White "Almeida, Marta Dias"]
[Black "Goncalves, Samuel Jesus Pereira"]
[Result "0-1"]
[ECO "A57"]
[WhiteElo "1347"]
[BlackElo "2072"]
[Annotator "TA"]
[PlyCount "88"]
[EventDate "2022.09.28"]
[EventType "swiss"]
[EventCountry "POR"]
[SourceTitle "playchess.com"]
[Source "ChessBase"]
[SourceQuality "1"]
[TimeControl "5400+30"]

{[%evp 9,88,20,22,24,17,21,31,19,36,2,0,-66,-54,-70,-56,-64,-60,-69,-45,-106,-108,-123,-118,-168,-168,-157,-71,-47,-42,-193,-189,-194,-195,-196,-208,-225,-215,-242,-245,-241,-226,-242,-244,-233,-211,-264,-256,-247,-264,-427,-427,-423,-419,-407,-395,-389,-369,-454,-407,-466,-461,-428,-367,-838,-822,-1381,-733,-1961,-1475,-1740,-1630,-3625,-4992,-2215,-2405,-4703,-4735,-29968,-9685,-29974,-10869]} 1. d4 {[%emt 0:00:02]} c5 {[%emt 0:00:15]} 2. d5 {[%emt 0:00:09]} Nf6 {[%emt 0:07:16]} 3. c4 {[%emt 0:02:38]} b5 {[%emt 0:01:05]} 4. e3 {[%emt 0:06:45]} bxc4 {[%emt 0:01:43]} 5. Bxc4 {[%emt 0:03:49]} d6 {[%emt 0:01:29]} 6. Nc3 {[%emt 0:01:35] A57: Benko/Volga Gambit.} g6 {[%emt 0:00:26]} 7. Nf3 {[%emt 0:00:44] 7.Nf3 scores better than 7.Nge2.} Bg7 {[%emt 0:00:18]} 8. O-O {[%emt 0:01:15] White is slightly better.} O-O {[%emt 0:01:15]} 9. Re1 {[%emt 0:02:41]} Nbd7 {[%emt 0:03:03]} 10. Qc2 {[%emt 0:05:13]} (10. Be2 $11) 10... Nb6 $15 {[%emt 0:01:16]} 11. Qe2 {[%emt 0:05:17] [#]} Nxc4 $146 {[%emt 0:06:24]} ({Predecessor:} 11... Bg4 12. e4 Nfd7 13. Bd3 Ne5 14. Bf4 c4 15. Bc2 Nbd7 16. h3 Nxf3+ 17. gxf3 Bh5 {1-0 (73) Mujic,S (1940)-Cursoux,G (2130) Loire 2003}) 12. Qxc4 {[%emt 0:00:11]} Rb8 {[%emt 0:05:02]} 13. e4 {[%emt 0:03:18]} Nd7 {[%emt 0:15:51]} 14. Rb1 {[%emt 0:14:49]} (14. Nd1 $15) 14... Qa5 $1 $36 {[%emt 0:14:41][%mdl 2048] ...Ba6 is the strong threat. White is under strong pressure.} 15. Bd2 {[%emt 0:05:09]} Ba6 {[%emt 0:06:49]} 16. Qa4 {[%emt 0:00:23]} Qxa4 {[%emt 0:00:13]} 17. Nxa4 {[%emt 0:00:06]} Nb6 {[%emt 0:16:50]} ({Black should try} 17... Bb5 $1 {[%cal Rb5a4]} 18. b3 c4) 18. Nxb6 {[%emt 0:01:30]} Rxb6 {[%emt 0:00:08]} 19. Bc3 {[%emt 0:11:57] This costs White the game.} (19. b3 $1 $15) 19... Bxc3 $1 $19 {[%emt 0:00:17]} 20. bxc3 {[%emt 0:00:01]} Rfb8 $1 {[%emt 0:00:11]} 21. Rxb6 {[%emt 0:02:52]} Rxb6 {[%emt 0:00:06][%mdl 4096] Endgame KRB-KRN} 22. e5 {[%emt 0:01:07] [#]} Bc4 $1 {[%emt 0:00:46][%csl LRa2,LRd5]} 23. exd6 {[%emt 0:01:18]} exd6 {[%emt 0:00:11]} 24. Nd2 {[%emt 0:06:07]} Bxd5 {[%emt 0:01:19]} 25. c4 {[%emt 0:02:15]} Rb2 {[%emt 0:01:07][%csl LRa2,LRd2]} 26. Rd1 {[%emt 0:00:43]} Be6 {[%emt 0:00:04]} 27. Ne4 {[%emt 0:00:14]} Bxc4 {[%emt 0:00:45]} 28. Nxd6 {[%emt 0:00:10]} Bxa2 {[%emt 0:00:08] Hoping for ...a5.} 29. h3 $2 {[%emt 0:00:14]} (29. Ne4 {was worth a try.}) 29... Rb1 {[%emt 0:01:36]} 30. Rxb1 {[%emt 0:00:11]} Bxb1 {[%emt 0:00:03] KB-KN} 31. Kf1 {[%emt 0:00:07]} Bd3+ {[%emt 0:01:49]} 32. Ke1 {[%emt 0:00:13]} c4 {[%emt 0:03:08]} 33. Kd2 {[%emt 0:00:41]} Bf1 {[%emt 0:03:05]} 34. g3 {[%emt 0:00:09]} Bxh3 {[%emt 0:00:17]} 35. Nxc4 {[%emt 0:00:06]} Be6 {[%emt 0:00:08]} 36. Ne3 {[%emt 0:00:45]} (36. Na5) 36... h5 {[%emt 0:00:25]} 37. Kc3 {[%emt 0:00:38]} a5 {[%emt 0:00:19][%cal Ba7a5,Ba5a4][%mdl 32] White must now prevent ...g5.} 38. Nc2 {[%emt 0:00:57]} Kg7 {[%emt 0:00:32] And now ...g5 would win.} 39. Kd4 {[%emt 0:00:36]} Kf6 {[%emt 0:00:24]} 40. f3 {[%emt 0:00:11]} g5 {[%emt 0:00:23][%cal Bg6g5,Bg5h4][%mdl 32]} 41. Ke3 {[%emt 0:00:13]} a4 {[%emt 0:00:30]} 42. Na3 {[%emt 0:00:10]} h4 {[%emt 0:00:34] Threatens to win with ...h3.} 43. gxh4 {[%emt 0:00:13]} gxh4 {[%emt 0:00:06] ( -> ...Kg5)} 44. Kf2 {[%emt 0:00:06]} Ke5 {[%emt 0:00:11] Weighted Error Value: White=0.77/Black=0.30} (44... Kf5 $142 45. Kg1 Kf4 46. Kg2 h3+ 47. Kh2 Kxf3 48. Nc2 Kf4 49. Na3 Kg4 50. Nc2 Bb3 51. Nd4 {[#]} a3 $1 52. Nxb3 a2 53. Kg1 Kg3 54. Kf1 h2 55. Ke1 h1=Q+ 56. Kd2 f5 57. Kd3 f4 58. Kd4 f3 59. Ke3 f2 60. Kd4 f1=Q 61. Nd2 Qf4+ 62. Kc5 Qc1+ 63. Kd5 Qf5+ 64. Kd6 Qcc5#) 0-1

[Event "XIII Marques de Pombal 2022"]
[Site "Pombal"]
[Date "2022.10.07"]
[Round "5.7"]
[White "Dias, Jose de Oliveira Gas"]
[Black "Morais, Vitor Mestre"]
[Result "1/2-1/2"]
[ECO "B21"]
[WhiteElo "1397"]
[BlackElo "1802"]
[Annotator "NA RC COMBH"]
[PlyCount "76"]
[EventDate "2022.09.28"]
[EventType "swiss"]
[EventCountry "POR"]
[SourceTitle "playchess.com"]
[Source "ChessBase"]
[SourceQuality "1"]
[TimeControl "5400+30"]

1. e4 {[%emt 0:00:02]} c5 {[%emt 0:00:10]} 2. d4 {[%emt 0:00:12]} cxd4 {[%emt 0:00:06]} 3. c3 {[%emt 0:00:04]} d3 {[%emt 0:00:25]} 4. Bxd3 {[%emt 0:00:10]} Nc6 {[%emt 0:00:13]} 5. f4 {[%emt 0:02:12]} d6 {[%emt 0:00:06]} 6. Be3 {[%emt 0:01:38]} Nf6 {[%emt 0:00:08]} 7. h3 {[%emt 0:00:43]} e6 {[%emt 0:00:09]} 8. Nf3 {[%emt 0:01:10]} Be7 {[%emt 0:00:08]} 9. Nbd2 {[%emt 0:02:47]} O-O {[%emt 0:00:19]} 10. g4 {[%emt 0:02:21]} Nd7 {[%emt 0:00:09]} 11. Bf2 {[%emt 0:00:46]} Nc5 {[%emt 0:00:11]} 12. Bc2 {[%emt 0:01:10]} b6 {[%emt 0:00:08]} 13. b4 {[%emt 0:02:39]} Nd7 {[%emt 0:00:13]} 14. a4 {[%emt 0:14:22]} Bb7 {[%emt 0:00:11]} 15. Nc4 {[%emt 0:10:06]} Qc7 {[%emt 0:00:10]} 16. Qd3 {[%emt 0:00:37]} g6 {[%emt 0:00:27]} 17. O-O-O {[%emt 0:03:19]} d5 {[%emt 0:00:33]} 18. exd5 {[%emt 0:00:36]} exd5 {[%emt 0:00:09]} 19. Nce5 {[%emt 0:05:39]} Ncxe5 {[%emt 0:02:03]} 20. Nxe5 {[%emt 0:01:24]} Nxe5 {[%emt 0:00:20]} 21. fxe5 {[%emt 0:00:06]} d4 {[%emt 0:01:13]} 22. Bxd4 {[%emt 0:01:26]} Bxh1 {[%emt 0:00:14]} 23. Rxh1 {[%emt 0:00:15]} Rfd8 {[%emt 0:00:27]} 24. Re1 {[%emt 0:01:29]} Rac8 {[%emt 0:00:16]} 25. Re4 {[%emt 0:01:02]} Bf8 {[%emt 0:00:28]} 26. g5 {[%emt 0:00:58]} Bg7 {[%emt 0:00:18]} 27. Qe3 {[%emt 0:02:39]} Qe7 {[%emt 0:03:50]} 28. h4 {[%emt 0:02:58]} Rc6 {[%emt 0:02:50]} 29. Kb2 {[%emt 0:01:40]} Re8 {[%emt 0:11:43]} 30. Bb3 {[%emt 0:00:43]} Qd7 {[%emt 0:05:55]} 31. Rf4 {[%emt 0:00:51]} Re7 {[%emt 0:01:15]} 32. Qf3 {[%emt 0:00:40]} Rc7 {[%emt 0:02:06]} 33. h5 {[%emt 0:07:24]} gxh5 {[%emt 0:04:23]} 34. Qxh5 {[%emt 0:00:12]} Qe8 {[%emt 0:04:34]} 35. Rh4 {[%emt 0:00:53]} Rxe5 {[%emt 0:00:10]} 36. Qxh7+ {[%emt 0:01:21]} Kf8 {[%emt 0:00:08]} 37. g6 {[%emt 0:06:38]} Re2+ {[%emt 0:01:17]} 38. Ka3 Re5 1/2-1/2

[Event "XIII Marques de Pombal 2022"]
[Site "Pombal"]
[Date "2022.10.08"]
[Round "5.8"]
[White "Cruz, Joao De Sousa Da"]
[Black "Gomes, Micael"]
[Result "0-1"]
[ECO "B13"]
[WhiteElo "1321"]
[BlackElo "1516"]
[Annotator "NA RC COMBH"]
[PlyCount "86"]
[EventDate "2022.09.28"]
[EventType "swiss"]
[EventCountry "POR"]
[SourceTitle "playchess.com"]
[Source "ChessBase"]
[SourceQuality "1"]
[TimeControl "5400+30"]

1. e4 {[%emt 0:00:50]} c6 {[%emt 0:00:13]} 2. d4 {[%emt 0:00:22]} d5 {[%emt 0:00:06]} 3. exd5 {[%emt 0:00:06]} cxd5 {[%emt 0:00:09]} 4. Nf3 {[%emt 0:00:22]} Nc6 {[%emt 0:00:10]} 5. c3 {[%emt 0:00:48]} Bf5 {[%emt 0:00:28]} 6. Bd3 {[%emt 0:01:35]} Bxd3 {[%emt 0:00:25]} 7. Qxd3 {[%emt 0:02:16]} e6 {[%emt 0:00:09]} 8. O-O {[%emt 0:00:58]} Bd6 {[%emt 0:00:19]} 9. Re1 {[%emt 0:09:21]} Nge7 {[%emt 0:02:15]} 10. Bg5 {[%emt 0:07:04]} O-O {[%emt 0:10:04]} 11. Bxe7 {[%emt 0:04:28]} Nxe7 {[%emt 0:09:31]} 12. Nbd2 {[%emt 0:01:22]} Rc8 {[%emt 0:07:18]} 13. Re2 {[%emt 0:07:12]} Ng6 {[%emt 0:02:11]} 14. g3 {[%emt 0:07:51]} Qb6 {[%emt 0:12:47]} 15. Rb1 {[%emt 0:03:09]} Qa5 {[%emt 0:03:10]} 16. Ra1 {[%emt 0:05:10]} b5 {[%emt 0:01:14]} 17. Nb3 {[%emt 0:04:44]} Qa4 {[%emt 0:04:54]} 18. Qd1 {[%emt 0:07:13]} b4 {[%emt 0:04:18]} 19. cxb4 {[%emt 0:05:50]} Qxb4 {[%emt 0:02:17]} 20. Qd2 {[%emt 0:02:51]} Qb5 {[%emt 0:02:00]} 21. Qd1 {[%emt 0:04:59]} a5 {[%emt 0:01:29]} 22. Rc1 {[%emt 0:09:46]} a4 {[%emt 0:01:18]} 23. Rxc8 {[%emt 0:06:13]} Rxc8 {[%emt 0:00:18]} 24. Nc5 {[%emt 0:04:42]} Ra8 {[%emt 0:24:26]} 25. Rc2 {[%emt 0:00:59]} Ne7 {[%emt 0:00:40]} 26. Qe2 {[%emt 0:00:26]} Qb4 {[%emt 0:02:54]} 27. Qd2 {[%emt 0:01:04]} Qb6 {[%emt 0:03:45]} 28. Nd7 {[%emt 0:01:33]} Qa7 {[%emt 0:00:43]} 29. Nfe5 {[%emt 0:00:28]} f6 {[%emt 0:00:36]} 30. Nc6 {[%emt 0:00:33]} Qxd7 {[%emt 0:00:26]} 31. Nxe7+ {[%emt 0:00:58]} Qxe7 {[%emt 0:01:16]} 32. Rc6 {[%emt 0:00:09]} Ra7 {[%emt 0:01:02]} 33. Rc8+ {[%emt 0:00:54]} Kf7 {[%emt 0:00:19]} 34. Rh8 {[%emt 0:00:28]} Kg6 {[%emt 0:02:25]} 35. Qd3+ {[%emt 0:00:22]} f5 {[%emt 0:00:10]} 36. h4 {[%emt 0:00:43]} Rc7 {[%emt 0:01:25]} 37. h5+ {[%emt 0:00:25]} Kf7 {[%emt 0:00:39]} 38. h6 {[%emt 0:00:39]} Qg5 {[%emt 0:00:39]} 39. hxg7 {[%emt 0:00:31]} Qxg7 {[%emt 0:00:18]} 40. Rd8 {[%emt 0:00:23]} Qh6 {[%emt 0:00:23]} 41. Qe3 {[%emt 0:00:10]} Rc1+ {[%emt 0:00:27]} 42. Kg2 Rb1 43. Qc1 Rxc1 0-1

[Event "XIII Marques de Pombal 2022"]
[Site "Pombal"]
[Date "2022.10.08"]
[Round "6.1"]
[White "Khamrakulov, Ibragim S."]
[Black "Ferreira, Hugo Miguel Da Costa"]
[Result "1/2-1/2"]
[ECO "B22"]
[WhiteElo "2421"]
[BlackElo "2101"]
[Annotator "TA"]
[PlyCount "27"]
[EventDate "2022.09.28"]
[EventType "swiss"]
[EventCountry "POR"]
[SourceTitle "playchess.com"]
[Source "ChessBase"]
[SourceQuality "1"]
[TimeControl "5400+30"]

{[%evp 19,27,0,29,34,22,22,33,-15,2,-70]} 1. e4 {[%emt 0:00:01]} c5 {[%emt 0:00:08]} 2. c3 {[%emt 0:00:55]} e6 {[%emt 0:00:07]} 3. Nf3 {[%emt 0:00:35]} Nf6 {[%emt 0:00:09]} 4. e5 {[%emt 0:00:29]} Nd5 {[%emt 0:00:10]} 5. Bc4 {[%emt 0:00:13]} Nc6 {[%emt 0:00:10]} 6. O-O {[%emt 0:00:10]} d6 {[%emt 0:00:05]} 7. d4 {[%emt 0:00:11]} cxd4 {[%emt 0:00:08]} 8. cxd4 {[%emt 0:00:08]} Be7 {[%emt 0:00:12]} 9. Qe2 {[%emt 0:07:06]} O-O {[%emt 0:00:11]} 10. Qe4 {[%emt 0:00:27] Recently 10.Rd1 got a lot of attention.} Ndb4 {[%emt 0:06:46] [#] And now ...d5 would win.} 11. exd6 {[%emt 0:01:15] B22: Sicilian: 2 c3.} Qxd6 {[%emt 0:12:14]} 12. Bf4 {[%emt 0:13:33]} Qd8 {[%emt 0:02:25]} 13. a3 {[%emt 0:01:33] [#]} (13. Nc3 $14) 13... Na5 $146 {[%emt 0:12:37]} ({Predecessor:} 13... Nd5 14. Bd2 a6 15. Nc3 Nf6 16. Qd3 b5 17. Ba2 Bb7 18. Rad1 b4 19. Ne4 bxa3 {0-1 (40) Schneider,V (2094)-Stojanovic,A (2170) Budva 2003}) 14. Bb5 {[%emt 0:34:58] White got outplayed after the opening.  Weighted Error Value: White=0.16 (very precise) /Black=0.09 (flawless)} ({White should try} 14. Bd3 $11 f5 15. Qe2) 1/2-1/2

[Event "XIII Marques de Pombal 2022"]
[Site "Pombal"]
[Date "2022.10.09"]
[Round "6.2"]
[White "Farias, David Nuno M E"]
[Black "Goncalves, Lucas Jordao"]
[Result "1/2-1/2"]
[ECO "C97"]
[WhiteElo "1863"]
[BlackElo "1849"]
[Annotator "NA RC COMBH"]
[PlyCount "96"]
[EventDate "2022.09.28"]
[EventType "swiss"]
[EventCountry "POR"]
[SourceTitle "playchess.com"]
[Source "ChessBase"]
[SourceQuality "1"]
[TimeControl "5400+30"]

1. e4 {[%emt 0:00:02]} e5 {[%emt 0:00:02]} 2. Nf3 {[%emt 0:00:06]} Nc6 {[%emt 0:00:08]} 3. Bb5 {[%emt 0:00:09]} a6 {[%emt 0:00:07]} 4. Ba4 {[%emt 0:00:01]} Nf6 {[%emt 0:00:13]} 5. O-O {[%emt 0:00:09]} Be7 {[%emt 0:00:02]} 6. Re1 {[%emt 0:00:04]} b5 {[%emt 0:00:03]} 7. Bb3 {[%emt 0:00:07]} d6 {[%emt 0:00:03]} 8. c3 {[%emt 0:01:44]} Na5 {[%emt 0:00:42]} 9. Bc2 {[%emt 0:02:45]} c5 {[%emt 0:00:09]} 10. d4 {[%emt 0:04:37]} Qc7 {[%emt 0:00:13]} 11. h3 {[%emt 0:01:20]} O-O {[%emt 0:00:08]} 12. Nbd2 {[%emt 0:00:34]} Bd7 {[%emt 0:00:30]} 13. Nf1 {[%emt 0:00:48]} cxd4 {[%emt 0:00:05]} 14. cxd4 {[%emt 0:00:04]} Rac8 {[%emt 0:00:09]} 15. Bd3 {[%emt 0:03:59]} Nc6 {[%emt 0:01:08]} 16. Bb1 {[%emt 0:16:46]} a5 {[%emt 0:11:20]} 17. Ne3 {[%emt 0:08:36]} (17. Be3 $14 {might be stronger.}) 17... Qa7 {[%emt 0:08:11]} 18. d5 {[%emt 0:22:43]} Nb4 {[%emt 0:00:35]} (18... Nd8 $11 {is superior.}) 19. Bd2 {[%emt 0:01:00]} Na6 {[%emt 0:05:35]} 20. Nf5 {[%emt 0:07:59]} (20. Bxa5 $14 Nc5 21. Bb4) 20... Bxf5 {[%emt 0:06:15]} 21. exf5 {[%emt 0:00:01]} Nxd5 {[%emt 0:01:23]} (21... Nc7 $15) 22. Bxa5 {[%emt 0:02:19]} Nf6 {[%emt 0:07:53]} 23. g4 {[%emt 0:03:45]} (23. a3 $11) 23... e4 {[%emt 0:01:45]} ({Black should try} 23... h6 $15) 24. Nd4 {[%emt 0:01:37]} (24. Bxe4 $14 Nxe4 25. Rxe4) 24... Rc4 $2 {[%emt 0:16:13]} (24... d5 $17 25. Nb3 h6) 25. Nxb5 {[%emt 0:02:46]} Qc5 {[%emt 0:00:07]} (25... Qb8 $1 $11 {keeps the balance.} 26. a4 d5) 26. a4 {[%emt 0:01:03]} e3 {[%emt 0:01:12]} 27. fxe3 {[%emt 0:10:11]} Nd5 {[%emt 0:00:26] [#]} 28. Kh1 $2 {[%emt 0:02:01]} ({White should try} 28. Bd2 $1 $16 Bg5 29. Qf3) 28... Bh4 $1 {[%emt 0:02:06]} 29. Rg1 $11 {[%emt 0:04:20]} Re8 {[%emt 0:04:06]} 30. e4 {[%emt 0:01:34]} Qe3 {[%emt 0:04:48]} 31. Ra3 {[%emt 0:01:36]} Nc3 {[%emt 0:02:46]} 32. Qf1 {[%emt 0:01:08]} Bf2 {[%emt 0:06:44]} 33. Rxc3 {[%emt 0:00:19]} Rxc3 {[%emt 0:03:18]} 34. Bxc3 {[%emt 0:00:11]} Bxg1 {[%emt 0:00:07]} 35. Bd4 {[%emt 0:00:14]} Qb3 {[%emt 0:01:00]} 36. Bxg1 {[%emt 0:00:57]} Qxa4 {[%emt 0:00:44]} 37. Nxd6 {[%emt 0:00:42]} Rb8 {[%emt 0:00:45]} 38. Qc4 {[%emt 0:00:35]} Qd1 {[%emt 0:06:01]} 39. Qd3 {[%emt 0:00:34]} Qc1 {[%emt 0:02:32]} 40. Ba2 {[%emt 0:00:31]} Qf4 {[%emt 0:02:40]} 41. Nxf7 {[%emt 0:00:29]} Nb4 {[%emt 0:01:18]} 42. Ne5+ {[%emt 0:00:20]} Kh8 {[%emt 0:00:13]} 43. Nf7+ {[%emt 0:00:38]} Kg8 {[%emt 0:00:12]} 44. Qc4 {[%emt 0:00:32]} Qf3+ {[%emt 0:01:51]} 45. Kh2 {[%emt 0:00:09]} Nd5 {[%emt 0:04:16]} 46. Bd4 {[%emt 0:00:53]} Rxb2+ {[%emt 0:00:57]} 47. Bxb2 {[%emt 0:00:17]} Qf2+ {[%emt 0:00:22]} 48. Kh1 {[%emt 0:00:06]} Qe1+ {[%emt 0:00:15]} 1/2-1/2

[Event "XIII Marques de Pombal 2022"]
[Site "Pombal"]
[Date "2022.10.09"]
[Round "6.3"]
[White "Padeiro, Jose Joao Tato"]
[Black "Povshednyi, Ivan"]
[Result "1/2-1/2"]
[ECO "A06"]
[WhiteElo "2215"]
[BlackElo "2140"]
[Annotator "TA"]
[PlyCount "88"]
[EventDate "2022.09.28"]
[EventType "swiss"]
[EventCountry "POR"]
[SourceTitle "playchess.com"]
[Source "ChessBase"]
[SourceQuality "1"]
[TimeControl "5400+30"]

{[%evp 14,88,0,0,15,0,5,0,6,0,0,8,35,25,31,27,23,11,2,19,17,25,20,29,58,42,47,12,8,-29,-20,-14,5,7,41,-20,-22,-118,-110,-118,-108,-162,-142,-130,-132,-127,-132,-160,-134,-137,-115,-147,-152,-212,-209,-256,-239,-230,-225,-205,-206,-235,-205,-333,-158,-158,-158,-158,-158,-158,-158,-158,-158,-158,-158,-158,-21]} 1. Nf3 {[%emt 0:00:06]} d5 {[%emt 0:00:21]} 2. c4 {[%emt 0:00:08]} e6 {[%emt 0:00:07]} 3. b3 {[%emt 0:00:06]} Nf6 {[%emt 0:00:08]} 4. Bb2 {[%emt 0:00:08]} c5 {[%emt 0:00:21]} 5. e3 {[%emt 0:00:10]} Nc6 {[%emt 0:00:13]} 6. cxd5 {[%emt 0:00:24]} exd5 {[%emt 0:00:10]} 7. Bb5 {[%emt 0:00:11]} Bd6 {[%emt 0:00:12]} 8. O-O {[%emt 0:00:41]} O-O {[%emt 0:00:09] A13: English Opening: 1...e6.} 9. d4 {[%emt 0:00:18]} cxd4 {[%emt 0:00:09]} 10. Nxd4 {[%emt 0:00:05]} Bc7 {[%emt 0:00:15] The position is equal.} 11. Nc3 {[%emt 0:05:08]} Qd6 {[%emt 0:07:35][%csl Gc7][%cal Rd6h2]} 12. g3 {[%emt 0:00:21]} a6 {[%emt 0:01:15]} 13. Be2 {[%emt 0:00:38]} Bh3 {[%emt 0:00:15]} 14. Re1 {[%emt 0:00:04]} Rfe8 {[%emt 0:15:34]} 15. Rc1 {[%emt 0:02:42]} Ba5 {[%emt 0:02:02]} 16. a3 {[%emt 0:03:29]} Bxc3 {[%emt 0:01:11]} 17. Rxc3 {[%emt 0:11:11]} Ne4 {[%emt 0:03:16]} 18. Rc2 {[%emt 0:00:40] [#]} Qh6 $146 {[%emt 0:11:13][%cal Oe4f2] aiming for ...Nxf2!} ({But not} 18... Qf6 19. f3 Qh6 20. fxe4 $16) ({Predecessor:} 18... Ne5 19. Bf1 Qh6 20. Bxh3 Qxh3 21. f3 Nd6 22. Rd2 h5 {1-0 (66) Barle,J (2455)-Gostisa,L (2410) Slovenia 1992}) 19. Nxc6 {[%emt 0:10:26]} bxc6 {[%emt 0:00:30]} 20. Qd4 {[%emt 0:09:36][%cal Oc2c6] Hoping for Rxc6!} c5 $40 {[%emt 0:31:06][%mdl 128] Black has some attack.} 21. Rxc5 {[%emt 0:00:58]} (21. Qxd5 $5 {[%cal Rc2c4]} Nxf2 22. Rxc5 $14) 21... Nxc5 {[%emt 0:00:53]} 22. Qxc5 {[%emt 0:00:04]} Rac8 {[%emt 0:06:15]} 23. Qd4 {[%emt 0:01:21][%cal Oe2a6]} Bf5 {[%emt 0:05:01] [#]} 24. Bf3 {[%emt 0:19:56] This bishop pair is nice.} ({Better is} 24. Bxa6 $1 $14 Rc2 25. Be2) 24... Be4 $11 {[%emt 0:00:49]} 25. Bxe4 {[%emt 0:00:40]} (25. Be2 $11 {remains equal.}) 25... dxe4 $17 {[%emt 0:00:09]} 26. Rd1 {[%emt 0:01:23]} Qg6 {[%emt 0:00:58]} 27. Qd7 {[%emt 0:14:17] [#]} (27. Rd2 $17) 27... Qe6 $1 $19 {[%emt 0:04:36]} 28. Qxe6 {[%emt 0:00:04]} Rxe6 $17 {[%emt 0:00:09][%mdl 4096] Endgame KRR-KRB} 29. Rd5 {[%emt 0:00:08]} h6 {[%emt 0:00:29]} 30. Kg2 {[%emt 0:01:12]} Rc2 {[%emt 0:00:57]} 31. Bd4 {[%emt 0:00:37]} Ra2 {[%emt 0:00:39]} 32. a4 {[%emt 0:06:03]} Ra3 {[%emt 0:01:32]} 33. h4 {[%emt 0:00:13]} (33. Rd8+ $17 Kh7 34. Rb8) 33... Rxb3 $19 {[%emt 0:02:06]} 34. h5 {[%emt 0:00:06]} Rd3 {[%emt 0:01:42]} 35. g4 {[%emt 0:02:03]} Kh7 {[%emt 0:01:06]} 36. Rd7 {[%emt 0:01:22] [#]} f6 {[%emt 0:02:19]} 37. a5 {[%emt 0:00:59]} Rd2 {[%emt 0:01:06]} 38. Ra7 {[%emt 0:04:17]} (38. Rb7 {was worth a try.}) 38... Rc6 {[%emt 0:00:47]} (38... Ra2 $19 {is more deadly.} 39. Bb6 Rc6) 39. Kg3 $17 {[%emt 0:00:12] Black is clearly better.} Ra2 {[%emt 0:01:04]} 40. Re7 {[%emt 0:05:56]} Rxa5 {[%emt 0:00:38]} 41. Rxe4 {[%emt 0:00:01]} Rc8 {[%emt 0:00:57] White must now prevent ...Kg8.} 42. Re7 {[%emt 0:00:16]} Kg8 {[%emt 0:00:20] Strongly threatening ...Ra8.} 43. Ra7 {[%emt 0:00:33] Inhibits Ra8.} Ra2 {[%emt 0:00:44]} 44. f4 {[%emt 0:00:13][%cal Og4g5]} Rd8 {[%emt 0:00:33] Weighted Error Value: White=0.18 (very precise) /Black=0.12 (very precise)} ({Black should play} 44... Rc1 $17 45. Kf3 Rg1 46. Ra8+ Kh7) 1/2-1/2